Cogmind - Beta 13 @@@ ROGUE MODE // 2024.04.28 @ 21:22:03 Player: Rubbe Result: Destroyed by Y-45 Defender with Beam Rifle Performance ------------- Evolutions (1) 500 Regions Visited (4) 800 Robots Destroyed (38) 190 Value Destroyed (832) 832 Prototype IDs (3) 60 Alien Tech Used (0) 0 Bonus (0) 0 TOTAL SCORE: 2382 Bonus ------- None Cogmind --------- Core Integrity 0/400 Matter 75/300 Energy 100/100 System Corruption 0% Temperature Cool (9) Movement Treading (320) Ox2 Location -9/Storage Parts ------- > --- POWER (2) -------- (None) > --- PROPULSION (2) --- Light Treads Improved Treads > --- UTILITY (3) ------ Small Storage Unit Huge Storage Unit Light Armor Plating > --- WEAPON (2) ------- Grenade Launcher > --- INVENTORY (25) --- Improved Treads Improved Treads Hover Unit Heat Sink Heat Sink Disposable Heat Sink Disposable Heat Sink Disposable Heat Sink Disposable Heat Sink High-capacity Matter Pod (198) Weight Redist. System Hardened Light Armor Plating Shield Generator Shield Generator Shield Generator Beam Rifle Assault Rifle Heavy Assault Rifle Heavy Assault Rifle Heavy Assault Rifle Mini Grenade Launcher Datajack Peak State ------------ > --- POWER ------------ Ion Engine F-cell Engine > --- PROPULSION ------- Light Treads Light Treads > --- UTILITY ---------- Small Storage Unit Huge Storage Unit Weight Redist. System > --- WEAPON ----------- Beam Rifle Heavy Assault Rifle > --- INVENTORY -------- Ion Engine Improved Treads Hover Unit Heat Sink Heat Sink Disposable Heat Sink Disposable Heat Sink Disposable Heat Sink Disposable Heat Sink High-capacity Matter Pod Light Armor Plating Hardened Light Armor Plating Shield Generator Shield Generator Shield Generator Assault Rifle Heavy Assault Rifle Heavy Assault Rifle Heavy Assault Rifle Heavy Assault Rifle Grenade Launcher Datajack [Rating: 20] Favorites ----------- Power Ion Engine Engine Ion Engine Propulsion Light Treads Treads Light Treads Utility Small Storage Unit Device Weight Redist. System Storage Small Storage Unit Protection Light Armor Plating Weapon Small Laser Energy Gun Small Laser Ballistic Gun Heavy Assault Rifle Launcher Grenade Launcher Build | -11 -10 -10 -9 -9 ------- Run | Yrd Mat Min Mat Sto Slots Evolved 2 | . . . 2 . Power 1 | . . . 1 . Propulsion . | . . . . . Utility 1 | . . . 1 . Weapon . | . . . . . Parts Attached 35 | 7 9 1 3 15 Power 4 | 1 . . . 3 Engine 4 | 1 . . . 3 Core . | . . . . . Reactor . | . . . . . Propulsion 7 | 2 . . 1 4 Treads 7 | 2 . . 1 4 Leg . | . . . . . Wheel . | . . . . . Hover . | . . . . . Flight . | . . . . . Utility 5 | 1 1 . 1 2 Device 2 | . . . 1 1 Storage 2 | 1 1 . . . Processor . | . . . . . Hackware . | . . . . . Protection 1 | . . . . 1 Artifact . | . . . . . Weapon 19 | 3 8 1 1 6 Energy Gun 8 | 2 4 . 1 1 Energy Cannon . | . . . . . Ballistic Gun 5 | 1 1 . . 3 Ballistic Cannon . | . . . . . Launcher 6 | . 3 1 . 2 Special Weapon . | . . . . . Impact Weapon . | . . . . . Slashing Weapon . | . . . . . Piercing Weapon . | . . . . . Special Melee Weapon . | . . . . . Unidentified Prototypes 1 | . . . . 1 Parts Lost 11 | . 1 . 1 9 Power 3 | . . . . 3 Propulsion 3 | . . . . 3 Utility 1 | . . . 1 . Weapon 4 | . 1 . . 3 Highest Loss Streak 2 | . 1 . 1 2 To Critical Strikes . | . . . . . Average Slot Usage (%) 91 | . 96 100 85 87 Engine 14 | . 14 14 11 16 Treads 23 | . 28 28 22 19 Device 4 | . . . 8 8 Storage 23 | . 25 28 22 22 Energy Gun 16 | . 20 14 19 12 Ballistic Gun 6 | . 5 7 . 8 Launcher 1 | . 1 6 2 . Naked Turns . | . . . . . Heaviest Build 108 | 13 95 94 96 108 Greatest Support 49 | 40 40 40 40 49 Greatest Overweight (x) 11 | . 2 2 2 11 Average Overweight (x) 1 | . 1 2 2 2 Largest Inventory Capacity 25 | 8 25 25 25 25 Average Capacity 23 | 6 21 25 25 25 Most Carried 25 | 4 19 18 23 25 Average Carried 15 | 1 7 18 19 22 Final Capacity 25 | 8 25 25 25 25 Final Carried 23 | 1 18 18 23 22 Class Distribution -------------------- 100% | Mutant Dominant Class ---------------- Mutant | -10/Materials Mutant | -10/Mines Mutant | -9/Materials Mutant | -9/Storage Resources | -11 -10 -10 -9 -9 ----------- Run | Yrd Mat Min Mat Sto Matter Collected 818 | 247 88 96 180 207 Remotely . | . . . . . Salvage Created 1122 | . 197 168 180 577 Parts 65 | . 12 7 7 39 Haulers Intercepted . | . . . . . Recyclers Shooed 1 | . . . . 1 Parts Field Recycled . | . . . . . Retrieved Matter . | . . . . . Parts Self-Destructed . | . . . . . Prevented . | . . . . . Kills | -11 -10 -10 -9 -9 ------- Run | Yrd Mat Min Mat Sto Combat Hostiles Destroyed 26 | . 5 4 3 14 Guns 17 | . 2 1 2 12 AOE 8 | . 3 3 . 2 Classes Destroyed 9 | . 3 2 1 3 Worker 4 | . 1 . 1 2 Builder 2 | . . . . 2 Recycler 3 | . . 2 . 1 Mechanic 1 | . . . . 1 Operator 1 | . 1 . . . Watcher 1 | . . . . 1 Swarmer 10 | . . 4 . 6 Grunt 8 | . 5 . . 3 Sentry 8 | . . . 3 5 Best Kill Streak 7 | . 4 6 1 7 Combat Bots Only 4 | . 3 4 1 4 Max Kills in Single Turn 3 | . 2 3 1 2 Gunslinging . | . . . . . Exploded 1 | . 1 1 . 1 Melee . | . . . . . Uniques/NPCs Destroyed . | . . . . . Combat | -11 -10 -10 -9 -9 -------- Run | Yrd Mat Min Mat Sto Hostile Shots Fired 270 | . 43 11 20 196 Missed 87 | . 13 3 7 64 Damage Taken 2243 | . 416 88 153 1586 Core 560 | . 126 31 . 403 Absorbed by Shields 46 | . . . 46 . Core Remaining (%) 68 | 100 . 37 . . Volleys Fired 91 | . 14 4 14 59 Largest 2 | . 2 2 2 2 Hottest 80 | . 80 70 80 80 Shots Fired 162 | . 27 8 28 99 Gun 141 | . 19 4 28 90 Cannon . | . . . . . Launcher 21 | . 8 4 . 9 Special . | . . . . . Kinetic 50 | . . . . 50 Thermal 86 | . 14 4 28 40 Explosive 21 | . 8 4 . 9 Electromagnetic 5 | . 5 . . . Robot Hit Streak 13 | . 4 4 7 13 Robot Miss Streak 3 | . 1 . 2 3 Penetration Max . | . . . . . Secondary Targets 1 | . . . . 1 Max Gunslinging Chain 1 | . . . . 1 Shots Hit Robots 99 | . 12 3 21 63 Core Hits 58 | . 12 7 6 33 Critical Kills 1 | . . . . 1 Critical Parts Destroyed 1 | . . . . 1 Critical Strikes 2 | . . . . 2 Destroy 2 | . . . . 2 Melee Attacks . | . . . . . Impact . | . . . . . Slashing . | . . . . . Piercing . | . . . . . Sneak Attacks . | . . . . . Combat Hostiles . | . . . . . Follow-up Attacks . | . . . . . Damage Inflicted 2377 | . 407 309 232 1429 Guns 1190 | . 118 22 232 818 Cannons . | . . . . . Explosions 1162 | . 289 287 . 586 Melee . | . . . . . Ramming 25 | . . . . 25 Kinetic 484 | . . . . 484 Thermal 641 | . 53 22 232 334 Explosive 1162 | . 289 287 . 586 Electromagnetic 65 | . 65 . . . Impact . | . . . . . Slashing . | . . . . . Piercing . | . . . . . Highest Corruption . | . . . . . Average Corruption . | . . . . . Corruption Purged . | . . . . . Corruption Blocked . | . . . . . Overload Shots . | . . . . . Overflow Damage 1 | . . . . 1 Projectiles . | . . . . . Explosions 1 | . . . . 1 Melee . | . . . . . Knockbacks . | . . . . . Impact . | . . . . . Kinetic . | . . . . . Secondary . | . . . . . Self-Inflicted Damage 136 | . 68 24 . 44 Shots 7 | . 3 1 . 3 Rammed 3 | . . . . 3 Targets Rammed 3 | . . . . 3 Kicked . | . . . . . Crushed . | . . . . . Highest Temperature 177 | . 122 27 99 177 Average Temperature 58 | . 56 12 37 72 Received Heat Transfer 827 | . 195 . 59 573 Siege Activations . | . . . . . Robots Corrupted . | . . . . . Combat Hostiles . | . . . . . Parts Fried . | . . . . . Impact Corruptions . | . . . . . Robots Melted 1 | . . . 1 . Combat Hostiles 1 | . . . 1 . Parts Melted 8 | . . . 4 4 Heat Transferred 1462 | . 125 50 525 762 Parts Sabotaged . | . . . . . Parts Stolen . | . . . . . Parts Stripped . | . . . . . Power Chain Reactions . | . . . . . Alert | -11 -10 -10 -9 -9 ------- Run | Yrd Mat Min Mat Sto Peak Influence 286 | . 130 129 165 286 Initial 69 | . . . 50 69 Average 78 | . 69 44 103 86 Maximum Alert Level 1 | . . . . 1 Low Security (%) 96 | 100 100 100 100 92 Level 1 3 | . . . . 7 Level 2 . | . . . . . Level 3 . | . . . . . Level 4 . | . . . . . Level 5 . | . . . . . High Security . | . . . . . Max Security . | . . . . . Squads Dispatched 4 | . 1 . . 3 Investigation 2 | . 1 . . 1 Extermination . | . . . . . Reinforcement . | . . . . . Assault . | . . . . . Garrison 2 | . . . . 2 Intercept . | . . . . . Searches Triggered . | . . . . . Construction Impeded . | . . . . . Haulers Reinforced . | . . . . . Active Scanning Responses . | . . . . . Cargo Convoy Interrupts . | . . . . . Stealth | -11 -10 -10 -9 -9 --------- Run | Yrd Mat Min Mat Sto Distress Signals 2 | . . . . 2 Communications Jammed . | . . . . . Distress Signals . | . . . . . Times Spotted 36 | . 7 5 4 20 Peak Tracking Total 6 | . 3 6 3 5 Tactical Retreats 2 | . . . . 2 Traps | -11 -10 -10 -9 -9 ------- Run | Yrd Mat Min Mat Sto Traps Triggered 1 | . . . . 1 Indirectly . | . . . . . Trap Hack Attempts . | . . . . . Triggered . | . . . . . Disarmed . | . . . . . Reprogrammed . | . . . . . Reused . | . . . . . Traps Extracted . | . . . . . Installed . | . . . . . Triggered . | . . . . . Machines | -11 -10 -10 -9 -9 ---------- Run | Yrd Mat Min Mat Sto Machines Disabled 1 | . 1 . . . Max in Single Turn 1 | . 1 . . . Machines Repaired . | . . . . . Machines Dismantled . | . . . . . Machines Sabotaged . | . . . . . Overloaded Fab Kills . | . . . . . Hacking | -11 -10 -10 -9 -9 --------- Run | Yrd Mat Min Mat Sto Machines Accessed 4 | . 1 . . 3 Terminals 3 | . 1 . . 2 Fabricators . | . . . . . Repair Stations . | . . . . . Recycling Units 1 | . . . . 1 Scanalyzers . | . . . . . Garrison Access . | . . . . . Total Hacks 10 | . 3 . . 7 Successful 5 | . 2 . . 3 Failed 5 | . 1 . . 4 Catastrophic . | . . . . . Database Lockouts . | . . . . . Manual . | . . . . . Terminals 8 | . 3 . . 5 Fabricators . | . . . . . Repair Stations . | . . . . . Recycling Units 2 | . . . . 2 Scanalyzers . | . . . . . Garrison Access . | . . . . . Terminal Hacks 3 | . 2 . . 1 Prototype ID Bank 1 | . 1 . . . Open Door 1 | . . . . 1 Hauler Manifests 1 | . 1 . . . Fabricator Hacks . | . . . . . Repair Station Hacks . | . . . . . Recycling Unit Hacks 2 | . . . . 2 Report Inventory 1 | . . . . 1 Retrieve Components 1 | . . . . 1 Scanalyzer . | . . . . . Garrison Access Hacks . | . . . . . Unauthorized Hacks . | . . . . . Terminals . | . . . . . Fabricators . | . . . . . Repair Stations . | . . . . . Recycling Units . | . . . . . Scanalyzers . | . . . . . Garrison Access . | . . . . . Data Cores Recovered 1 | . 1 . . . Used . | . . . . . Hacking Detections 3 | . 1 . . 2 Full Trace Events 2 | . 1 . . 1 Feedback Events . | . . . . . Feedback Blocked . | . . . . . Robot Schematics Acquired . | . . . . . Robots Built . | . . . . . Authchips . | . . . . . Time . | . . . . . Total Robot Build Rating . | . . . . . Part Schematics Acquired . | . . . . . Parts Built . | . . . . . Authchips . | . . . . . Time . | . . . . . Total Part Build Rating . | . . . . . Parts Repaired . | . . . . . Time . | . . . . . Parts Recycled . | . . . . . Recycled Matter . | . . . . . Retrieved Matter . | . . . . . Retrieved Components 1 | . . . . 1 Parts Scanalyzed . | . . . . . Part Schematics Acquired . | . . . . . Parts Damaged . | . . . . . Bothacking | -11 -10 -10 -9 -9 ------------ Run | Yrd Mat Min Mat Sto Used RIF Installer . | . . . . . Robots Hacked . | . . . . . Non-combat . | . . . . . Combat . | . . . . . Robot Hacks Applied . | . . . . . Relay Couplers Released . | . . . . . Fabnet Peak Effective % . | . . . . . Robots Rewired . | . . . . . Allies Hacked . | . . . . . Hacks Repelled . | . . . . . Allies | -11 -10 -10 -9 -9 -------- Run | Yrd Mat Min Mat Sto Total Allies . | . . . . . Largest Group . | . . . . . Highest-Rated Group . | . . . . . Highest-Rated Ally . | . . . . . Total Orders . | . . . . . Ally Attacks . | . . . . . Total Damage . | . . . . . Kills . | . . . . . Allies Corrupted . | . . . . . Allies Melted . | . . . . . Intel | -11 -10 -10 -9 -9 ------- Run | Yrd Mat Min Mat Sto Robot Analysis Total . | . . . . . Derelict Logs Recovered . | . . . . . Drone Launches . | . . . . . Drone Recoveries . | . . . . . Exploration | -11 -10 -10 -9 -9 ------------- Run | Yrd Mat Min Mat Sto Turns Passed 2373 | 76 884 94 305 1014 Spaces Moved 691 | 42 302 26 80 241 Core 10 | 4 . . . 6 Treads 681 | 38 302 26 80 235 Legs . | . . . . . Wheels . | . . . . . Hover . | . . . . . Flight . | . . . . . Fastest Speed 50 | 50 160 320 320 240 Average Speed 288 | 149 269 320 320 323 Slowest Speed 600 | 160 320 320 320 600 Overloaded Moves . | . . . . . Propulsion Burnouts . | . . . . . Robots Hopped . | . . . . . Cave-ins Triggered . | . . . . . Exploration Rate (%) 18 | 4 40 11 8 31 Regions Visited 4 Branch Regions 2 Pre-discovered Areas . | . . . . . Known Exits Taken . | . . . . . Unknown Exits Taken 4 | 1 1 1 1 . Scrap Searched . | . . . . . Spaces Dug . | . . . . . Terrain Destroyed 119 | . 62 33 . 24 Melee . | . . . . . Projectile . | . . . . . AOE 119 | . 62 33 . 24 Terrain Rammed . | . . . . . Walls Destroyed . | . . . . . Machines Disabled . | . . . . . Actions | -11 -10 -10 -9 -9 --------- Run | Yrd Mat Min Mat Sto Total 905 | 55 346 30 102 372 Wait 34 | . . . . 34 Move 687 | 41 301 25 79 241 Hop . | . . . . . Pick Up 45 | 7 20 . 6 12 Fast Attach . | . . . . . Attach 19 | 6 3 . 1 9 Detach 2 | . 1 . . 1 Swap 16 | 1 6 1 2 6 Drop 6 | . 1 . . 5 Fire 91 | . 14 4 14 59 Melee . | . . . . . Ram . | . . . . . Kick . | . . . . . Crush 3 | . . . . 3 Escape Stasis 2 | . . . . 2 Rewire . | . . . . . Trap . | . . . . . Miscellaneous . | . . . . . Route ------- -11/Scrapyard -10/Materials (discovered 2 exits: [*Min x2]) -10/Mines -9/Materials -9/Storage History --------- Turn | Location | Event 2 | -11/Scrapyard | Discovered new exit (range 16) 77 | -11/Scrapyard | Entered Materials 341 | -10/Materials | Build established: Mutant 595 | -10/Materials | Core integrity fell below 50% 645 | -10/Materials | Discovered new exit (range 13) 945 | -10/Materials | Discovered new exit (range 4) 961 | -10/Materials | Entered Mines 990 | -10/Mines | Met a Derelict bent on vengeance 1020 | -10/Mines | Discovered new exit (range 9) 1055 | -10/Mines | Entered Materials 1055 | -9/Materials | Evolved 2 slots: Power x1, Utility x1 1251 | -9/Materials | Discovered new exit (range 11) 1360 | -9/Materials | Entered Storage 2191 | -9/Storage | Garrison activated, responded to threat 2196 | -9/Storage | Core integrity fell below 50% 2321 | -9/Storage | Core integrity fell below 20% 2374 | -9/Storage | Destroyed by Y-45 Defender with Beam Rifle Last Messages --------------- U-05 Engineer builds a Wall. M-13 Machinist repairs G-34 Mercenary. Acquired Mni. Grenade Launcher. Hvy. Assault Rifle destroyed. U-05 Engineer lays Concrete. Hvy. Assault Rifle destroyed. U-05 Engineer lays Concrete. U-05 Engineer destroyed. G-34 Mercenary destroyed. Destroyed Wheel. U-05 Engineer destroyed. K-01 Serf collects debris. M-13 Machinist sends out distress signal. M-13 Machinist destroyed. K-01 Serf collects debris. R-06 Scavenger destroyed. K-01 Serf collects debris. Critical hit (Burn: +37). K-01 Serf destroyed. G-34 Mercenary destroyed. Map ----- +----------------------------------------------------+ | | | | | ?????????????????????????????????????????? | | ?????????????????????????????????????????? | | ?????????????????????????????????????????? | | ?????????????????????????????????????????? | | ?????????????????????????????????????????? | | ?????????????????????????????????????????? | | ?????????????????????????????????????????? | | ?????????????????????????????????????????? | | ?????????????????????????????????????????? | | ?????????????????????????????????????????? | | ?????????????????????????????????????????? | | ?????????????????????????????????????????? | | ?????????????????????????????????????????? | | ?????????????????????????????????????????? | | ?????????????????????????????????????????? | | ???????????##+#??????????????????????????? | | ???????????# ?????????????????????????? | | ???????????# #?????????????????????????? | | ???????????+ #?????????????????????????? | | ???????????# #?????????????????????????? | | ???????????+ #########?????????????????? | | ???????????# # T #?????????????????? | | ???????????# #== #?????????????????? | | ??########## #Y@ #?????????????????? | | ??# # #?????????????????? | | ??# """ # #?????????????????? | | ??# """ # #?????????????????? | | ### """ # #?????????????????? | | #"" # #?????????????????? | | #"T """ # | #?????????????????? | | #"" """ + % =#?????????????????? | | ### """ # %% %!#?????????????????? | | ?# # % ####!#?????????????????? | | ############ ###????##?????????????????? | | # # # #???????????????????????? | | ## # ###??????????????????????? | | # #% "??????????????????????? | | # / "??????????????????????? | | # # "??????????????????????? | | ?# # ##T#??????????????????????? | | ?# # #?##??????????????????????? | | ?# ?#^ #?????????????????????????? | | ?###" "###?#^^ #?????????????????????????? | | ???#"Y"????# #?????????????????????????? | | ???#"??????# #?????????????????????????? | | ???????????# #?????????????????????????? | | ???????????#%* #?????????????????????????? | | ???????????#[= #?????????????????????????? | +----------------------------------------------------+ Best States ------------- Heat Dissipation 28 Energy Generation 24 Energy Capacity 650 Matter Stores 300 Matter Capacity 300 Sight Range 16 Terrain Scan Density 10 Additional Mass Support 6 Armor Coverage 150 Evasion (%) 40 Recoil Reduction 2 Item Schematics ----------------- None Robot Schematics ------------------ None Fabricated ------------ Nothing Alien Tech Used ----------------- None Achievements -------------- Troublemaker Challenges ------------ None Game ------ Seed SniperBombMatrix Manual? 0 Play Time 00:16:45 Cumulative 2.3 hours Start 2024.04.28 @ 18:43:53 End 2024.04.28 @ 21:22:03 Sessions 1 Manual Loads 0 Difficulty Rogue Special Mode None Game No. 7 Rogue 7 Adventurer 0 Explorer 0 Win Type - Total 0 Types 0/0/0/0/0/0/0/0/0 Lore% 5 Gallery% 9 Achievement% 10 Wizard Run 0 Options --------- Layout 1 ASCII 0 Keyboard 0 Movement Mouse Keybinds 0 Fullscreen 1 Font 24/Smallcaps Map View 50x35 Zoom Use 0% Tactical HUD 0 Map Filters NONE Filters NONE Steam 1 RUN: e83dd597-8463-481f-ab8d-e5b62412b695